[Event "Championnat d'Europe Rapide"]
[Date "2024.12.08"]
[White "Fridman, Daniel"]
[Black "Janik, Igor"]
[WhiteElo "2571"]
[BlackElo "2515"]
[Round "10.8"]
[Result "1/2-1/2"]
[TimeControl "900+10"]

1. d4 {[%emt 00:03:18] [%clk 00:12:01]} g6 {[%emt 00:00:10] [%clk 00:15:12]} 2.
Nf3 {[%emt 00:00:03] [%clk 00:12:07]} Bg7 {[%emt 00:00:15] [%clk 00:15:06]} 3.
g3 {[%emt 00:00:03] [%clk 00:12:15]} c5 {[%emt 00:00:11] [%clk 00:15:06]} 4. c3
{[%emt 00:00:05] [%clk 00:12:19]} cxd4 {[%emt 00:01:01] [%clk 00:14:15]} 5. cxd4
{[%emt 00:00:02] [%clk 00:12:27]} Nf6 {[%emt 00:00:01] [%clk 00:14:24]} 6. Nc3
{[%emt 00:00:01] [%clk 00:12:35]} d5 {[%emt 00:00:56] [%clk 00:13:39]} 7. Bg2
{[%emt 00:00:07] [%clk 00:12:38]} O-O {[%emt 00:01:22] [%clk 00:12:27]} 8. Ne5
{[%emt 00:00:02] [%clk 00:12:46]} e6 {[%emt 00:00:18] [%clk 00:12:19]} 9. O-O
{[%emt 00:00:02] [%clk 00:12:54]} Nfd7 {[%emt 00:00:02] [%clk 00:12:28]} 10. e4
{[%emt 00:00:01] [%clk 00:13:02]} Nxe5 {[%emt 00:02:36] [%clk 00:10:02]} 11.
dxe5 {[%emt 00:00:01] [%clk 00:13:10]} d4 {[%emt 00:00:43] [%clk 00:09:30]} 12.
Nb5 {[%emt 00:00:02] [%clk 00:13:18]} d3 {[%emt 00:00:40] [%clk 00:09:00]} 13.
Be3 {[%emt 00:03:33] [%clk 00:09:54]} a6 {[%emt 00:01:33] [%clk 00:07:38]} 14.
Nd6 {[%emt 00:00:22] [%clk 00:09:41]} Bxe5 {[%emt 00:00:28] [%clk 00:07:21]} 15.
Nc4 {[%emt 00:00:01] [%clk 00:09:50]} Bc7 {[%emt 00:02:54] [%clk 00:04:37]} 16.
Bc5 {[%emt 00:00:32] [%clk 00:09:27]} Re8 {[%emt 00:00:03] [%clk 00:04:45]} 17.
e5 {[%emt 00:00:08] [%clk 00:09:27]} Nd7 {[%emt 00:01:38]} 18. Bd6 {[%emt
00:00:58] [%clk 00:08:08]} Bxd6 {[%emt 00:00:17] [%clk 00:03:42]} 19. Nxd6
{[%emt 00:00:27] [%clk 00:07:50]} Rf8 {[%emt 00:00:44] [%clk 00:03:09]} 20. f4
{[%emt 00:00:02] [%clk 00:07:57]} Qb6+ {[%emt 00:00:02] [%clk 00:03:18]} 21. Kh1
{[%emt 00:00:40] [%clk 00:07:27]} Nc5 {[%emt 00:00:24] [%clk 00:03:04]} 22. Qd2
{[%emt 00:00:38] [%clk 00:06:59]} Bd7 {[%emt 00:00:04] [%clk 00:03:10]} 23. b4
{[%emt 00:00:07] [%clk 00:07:01]} Na4 {[%emt 00:00:03] [%clk 00:03:17]} 24. Qxd3
{[%emt 00:00:51] [%clk 00:06:19]} Bc6 {[%emt 00:01:46] [%clk 00:01:41]} 25. Rac1
{[%emt 00:02:35] [%clk 00:03:55]} Bxg2+ {[%emt 00:00:29] [%clk 00:01:22]} 26.
Kxg2 {[%emt 00:00:02] [%clk 00:04:03]} Qxb4 {[%emt 00:00:02] [%clk 00:01:30]}
27. Rc4 {[%emt 00:00:02] [%clk 00:04:11]} Qa5 {[%emt 00:01:06] [%clk 00:00:35]}
28. Nxb7 {[%emt 00:00:28] [%clk 00:03:52]} Qb5 {[%emt 00:00:25] [%clk 00:00:19]}
29. Nd6 {[%emt 00:00:20] [%clk 00:03:42]} Nb2 {[%emt 00:00:02] [%clk 00:00:28]}
30. Qf3 {[%emt 00:01:12] [%clk 00:02:40]} Nxc4 {[%emt 00:00:08] [%clk 00:00:30]}
31. Nxb5 {[%emt 00:00:01] [%clk 00:02:49]} axb5 {[%emt 00:00:10] [%clk
00:00:30]} 32. Rf2 {[%emt 00:00:03] [%clk 00:02:55]} Ra3 {[%emt 00:00:13] [%clk
00:00:28]} 33. Qb7 {[%emt 00:00:03] [%clk 00:03:02]} Ra5 {[%emt 00:00:04] [%clk
00:00:34]} 34. g4 {[%emt 00:00:21] [%clk 00:02:51]} Rfa8 {[%emt 00:00:22] [%clk
00:00:22]} 35. Kg3 {[%emt 00:00:36] [%clk 00:02:25]} Ra3+ {[%emt 00:00:16] [%clk
00:00:16]} 36. Rf3 {[%emt 00:00:49] [%clk 00:01:45]} Rxf3+ {[%emt 00:00:04]
[%clk 00:00:22]} 37. Kxf3 {[%emt 00:00:02] [%clk 00:01:53]} Ra3+ {[%emt
00:00:14] [%clk 00:00:20]} 38. Ke4 {[%emt 00:00:10]} Rxa2 {[%clk 00:00:25]} 39.
Qxb5 {[%emt 00:00:15] [%clk 00:01:51]} Nd2+ {[%emt 00:00:22] [%clk 00:00:13]}
40. Ke3 {[%emt 00:00:06] [%clk 00:01:55]} Rc2 {[%emt 00:00:08] [%clk 00:00:16]}
41. h4 {[%emt 00:00:57] [%clk 00:01:07]} Kg7 {[%emt 00:00:05] [%clk 00:00:21]}
42. h5 {[%emt 00:00:06] [%clk 00:01:11]} gxh5 {[%emt 00:00:14] [%clk 00:00:18]}
43. gxh5 {[%emt 00:00:03] [%clk 00:01:17]} Ra2 {[%emt 00:00:16] [%clk 00:00:12]}
44. Kd3 {[%emt 00:01:00] [%clk 00:00:26]} Nf3 {[%emt 00:00:09] [%clk 00:00:13]}
45. Qb7 {[%emt 00:00:11] [%clk 00:00:27]} Ra3+ {[%emt 00:00:07] [%clk 00:00:16]}
46. Ke2 {[%emt 00:00:10] [%clk 00:00:27]} Nd4+ {[%emt 00:00:02] [%clk 00:00:24]}
47. Kd1 {[%emt 00:00:02] [%clk 00:00:34]} Nf5 {[%emt 00:00:06] [%clk 00:00:29]}
48. Qg2+ {[%emt 00:00:04] [%clk 00:00:39]} Rg3 {[%emt 00:00:02] [%clk 00:00:37]}
49. Qb7 {[%emt 00:00:07] [%clk 00:00:42]} h6 {[%emt 00:00:04] [%clk 00:00:43]}
50. Qb8 {[%emt 00:00:15] [%clk 00:00:37]} Rh3 {[%emt 00:00:11] [%clk 00:00:43]}
51. Qd8 {[%emt 00:00:02] [%clk 00:00:44]} Rxh5 {[%emt 00:00:21] [%clk 00:00:32]}
52. Qf6+ {[%emt 00:00:01] [%clk 00:00:52]} Kg8 {[%emt 00:00:02] [%clk 00:00:41]}
53. Qd8+ {[%emt 00:00:02] [%clk 00:01:00]} Kg7 {[%emt 00:00:36] [%clk 00:00:15]}
54. Qf6+ {[%emt 00:00:02] [%clk 00:01:07]} Kg8 {[%emt 00:00:03] [%clk 00:00:23]}
55. Qd8+ {[%emt 00:00:09] [%clk 00:01:07]} Kh7 {[%emt 00:00:19] [%clk 00:00:15]}
56. Qf6 {[%emt 00:00:31] [%clk 00:00:46]} Ng7 {[%emt 00:00:07] [%clk 00:00:19]}
57. Qxf7 {[%emt 00:00:02] [%clk 00:00:53]} Rf5 {[%emt 00:00:02] [%clk 00:00:28]}
58. Qc7 {[%emt 00:00:05] [%clk 00:00:57]} Rxf4 {[%emt 00:00:02] [%clk 00:00:36]}
59. Ke2 {[%emt 00:00:11] [%clk 00:00:56]} Rf5 {[%emt 00:00:10] [%clk 00:00:36]}
60. Ke3 {[%emt 00:00:05] [%clk 00:01:00]} Kg6 {[%emt 00:00:02] [%clk 00:00:45]}
61. Ke4 {[%emt 00:00:05] [%clk 00:01:05]} h5 {[%emt 00:00:19] [%clk 00:00:36]}
62. Qd8 {[%emt 00:00:08] [%clk 00:01:07]} Rf1 {[%emt 00:00:17] [%clk 00:00:29]}
63. Qh4 {[%emt 00:00:16] [%clk 00:01:00]} Rf5 {[%emt 00:00:07] [%clk 00:00:33]}
64. Qd8 {[%emt 00:00:11] [%clk 00:00:59]} Rf1 {[%emt 00:00:28] [%clk 00:00:15]}
1/2-1/2

[Site "Europe Echecs"]

[Event "Championnat d'Europe Rapide"]
[Date "2024.12.08"]
[White "Kadric, Denis"]
[Black "Muradli, Mahammad"]
[WhiteElo "2544"]
[BlackElo "2588"]
[Round "10.9"]
[Result "1/2-1/2"]
[TimeControl "900+10"]

1. e4 {[%emt 00:00:02] [%clk 00:15:18]} c5 {[%emt 00:00:02] [%clk 00:15:19]} 2.
Nf3 {[%emt 00:00:09] [%clk 00:15:18]} d6 {[%emt 00:00:02] [%clk 00:15:28]} 3. d4
{[%clk 00:15:27]} cxd4 {[%emt 00:00:03] [%clk 00:15:35]} 4. Nxd4 {[%clk
00:15:36]} Nf6 {[%clk 00:15:44]} 5. Nc3 {[%emt 00:00:01] [%clk 00:15:45]} a6
{[%clk 00:15:53]} 6. Bc4 {[%emt 00:00:12] [%clk 00:15:43]} e6 {[%emt 00:00:12]
[%clk 00:15:50]} 7. Bb3 {[%emt 00:00:01] [%clk 00:15:52]} b5 {[%emt 00:00:20]
[%clk 00:15:40]} 8. Bg5 {[%emt 00:00:06] [%clk 00:15:56]} Be7 {[%emt 00:03:04]
[%clk 00:12:46]} 9. Qf3 {[%emt 00:00:03] [%clk 00:16:03]} Qb6 {[%emt 00:00:15]
[%clk 00:12:40]} 10. O-O-O {[%emt 00:00:05] [%clk 00:16:09]} O-O {[%emt
00:01:11] [%clk 00:11:40]} 11. Rhe1 {[%emt 00:00:17] [%clk 00:16:02]} Bb7 {[%emt
00:01:13] [%clk 00:10:36]} 12. Qg3 {[%emt 00:02:01] [%clk 00:14:11]} Kh8 {[%emt
00:00:33] [%clk 00:10:14]} 13. Qh4 {[%emt 00:00:17] [%clk 00:14:04]} Nbd7 {[%emt
00:01:46] [%clk 00:08:38]} 14. f4 {[%emt 00:00:07] [%clk 00:14:07]} b4 {[%emt
00:03:07] [%clk 00:05:41]} 15. Na4 {[%emt 00:01:02] [%clk 00:13:15]} Qc7 {[%emt
00:00:01] [%clk 00:05:50]} 16. Rd3 {[%emt 00:01:03] [%clk 00:12:22]} Rfc8 {[%emt
00:00:58] [%clk 00:05:02]} 17. Rh3 {[%emt 00:02:39] [%clk 00:09:53]} Nf8 {[%emt
00:00:02] [%clk 00:05:10]} 18. f5 {[%emt 00:00:46] [%clk 00:09:17]} e5 {[%emt
00:00:24] [%clk 00:04:55]} 19. Nf3 {[%emt 00:00:03] [%clk 00:09:24]} d5 {[%emt
00:01:47] [%clk 00:03:19]} 20. g4 {[%emt 00:03:15] [%clk 00:06:19]} dxe4 {[%emt
00:01:43] [%clk 00:01:46]} 21. Bxf6 {[%emt 00:00:01] [%clk 00:06:27]} Bxf6
{[%emt 00:00:20] [%clk 00:01:37]} 22. g5 {[%clk 00:06:36]} Bd8 {[%clk 00:01:46]}
23. Nd2 {[%emt 00:02:30] [%clk 00:04:16]} Bd5 {[%emt 00:00:27] [%clk 00:01:29]}
24. c3 {[%emt 00:00:01] [%clk 00:04:25]} bxc3 {[%emt 00:00:27] [%clk 00:01:12]}
25. Nxc3 {[%emt 00:00:14] [%clk 00:04:21]} Bxb3 {[%emt 00:00:05] [%clk
00:01:17]} 26. axb3 {[%emt 00:00:01] [%clk 00:04:30]} f6 {[%emt 00:00:47] [%clk
00:00:40]} 27. Ndxe4 {[%emt 00:01:39] [%clk 00:03:01]} fxg5 {[%emt 00:00:01]
[%clk 00:00:48]} 28. Qh5 {[%clk 00:03:10]} Rab8 {[%emt 00:00:35] [%clk
00:00:24]} 29. Nxg5 {[%emt 00:00:56] [%clk 00:02:24]} Bxg5+ {[%emt 00:00:22]
[%clk 00:00:12]} 30. Qxg5 {[%clk 00:02:33]} Qf7 {[%emt 00:00:08] [%clk
00:00:15]} 31. Rxe5 {[%emt 00:01:46] [%clk 00:00:57]} Qxb3 {[%emt 00:00:07]
[%clk 00:00:18]} 32. Re2 {[%emt 00:00:47] [%clk 00:00:19]} Rb7 {[%emt 00:00:17]
[%clk 00:00:11]} 33. f6 {[%emt 00:00:09] [%clk 00:00:21]} g6 {[%emt 00:00:07]
[%clk 00:00:14]} 34. Qe5 {[%emt 00:00:14] [%clk 00:00:17]} Kg8 {[%emt 00:00:12]
[%clk 00:00:11]} 35. Rd3 {[%emt 00:00:08] [%clk 00:00:20]} a5 {[%emt 00:00:09]
[%clk 00:00:12]} 36. Qxa5 {[%emt 00:00:13] [%clk 00:00:16]} Rf7 {[%emt 00:00:11]
[%clk 00:00:12]} 37. Rf2 {[%emt 00:00:13] [%clk 00:00:12]} Rc6 {[%emt 00:00:10]
[%clk 00:00:12]} 38. Qd5 {[%emt 00:00:08] [%clk 00:00:15]} Qb6 {[%emt 00:00:02]
[%clk 00:00:20]} 39. Rf1 {[%emt 00:00:12] [%clk 00:00:13]} Rcxf6 {[%emt
00:00:18] [%clk 00:00:12]} 40. Rxf6 {[%emt 00:00:01] [%clk 00:00:21]} Qxf6
{[%emt 00:00:01] [%clk 00:00:21]} 41. Ne4 {[%emt 00:00:02] [%clk 00:00:30]} Qf1+
{[%emt 00:00:18] [%clk 00:00:13]} 42. Kc2 {[%emt 00:00:06] [%clk 00:00:34]} Qf5
{[%emt 00:00:12] [%clk 00:00:11]} 43. Qc4 {[%emt 00:00:27] [%clk 00:00:16]} Ne6
{[%emt 00:00:11]} 44. Nd6 {[%emt 00:00:13] [%clk 00:00:13]} Qe5 {[%emt 00:00:10]
[%clk 00:00:11]} 45. Nxf7 {[%emt 00:00:03] [%clk 00:00:20]} Kxf7 {[%clk
00:00:21]} 46. Rd2 {[%emt 00:00:08] [%clk 00:00:22]} Qf5+ {[%emt 00:00:15] [%clk
00:00:16]} 47. Kc1 {[%emt 00:00:07] [%clk 00:00:25]} g5 {[%emt 00:00:10] [%clk
00:00:16]} 48. b4 {[%emt 00:00:02] [%clk 00:00:33]} Kf6 {[%emt 00:00:13] [%clk
00:00:13]} 49. b5 {[%emt 00:00:01] [%clk 00:00:42]} Qf3 {[%emt 00:00:11] [%clk
00:00:12]} 50. Kb2 {[%emt 00:00:06] [%clk 00:00:46]} Qf5 {[%emt 00:00:11] [%clk
00:00:11]} 51. b6 {[%emt 00:00:14] [%clk 00:00:42]} Nc5 {[%emt 00:00:05] [%clk
00:00:15]} 52. Rd6+ {[%emt 00:00:24] [%clk 00:00:29]} Ke7 {[%emt 00:00:12] [%clk
00:00:13]} 53. Rd5 {[%clk 00:00:38]} Qf2+ {[%emt 00:00:06] [%clk 00:00:17]} 54.
Ka3 {[%emt 00:00:01] [%clk 00:00:47]} Qe3+ {[%emt 00:00:14] [%clk 00:00:12]} 55.
Kb4 {[%emt 00:00:02] [%clk 00:00:55]} Nd7 {[%emt 00:00:03] [%clk 00:00:20]} 56.
Rd4 {[%emt 00:00:52] [%clk 00:00:14]} Qe1+ {[%emt 00:00:18] [%clk 00:00:12]} 57.
Kb5 {[%emt 00:00:06] [%clk 00:00:17]} Qe5+ {[%emt 00:00:02] [%clk 00:00:20]} 58.
Qd5 {[%emt 00:00:14] [%clk 00:00:13]} Qe2+ {[%clk 00:00:29]} 59. Qc4 {[%emt
00:00:01] [%clk 00:00:22]} Qe5+ {[%emt 00:00:07] [%clk 00:00:31]} 60. Kc6 {[%emt
00:00:18] [%clk 00:00:14]} Qf6+ {[%emt 00:00:24] [%clk 00:00:17]} 61. Kb5 {[%emt
00:00:12] [%clk 00:00:13]} Qxb6+ {[%emt 00:00:01] [%clk 00:00:26]} 62. Ka4
{[%clk 00:00:23]} Nc5+ {[%emt 00:00:23] [%clk 00:00:12]} 63. Ka3 {[%clk
00:00:32]} Ne6 {[%emt 00:00:10] [%clk 00:00:13]} 64. Qb4+ {[%emt 00:00:16] [%clk
00:00:26]} 1/2-1/2

[Site "Europe Echecs"]

[Event "Championnat d'Europe Rapide"]
[Date "2024.12.08"]
[White "Van Foreest, Jorden"]
[Black "Horvath, Dominik"]
[WhiteElo "2677"]
[BlackElo "2542"]
[Round "10.10"]
[Result "1-0"]
[TimeControl "900+10"]

1. e4 {[%emt 00:03:37] [%clk 00:11:42]} e5 {[%emt 00:00:02] [%clk 00:15:19]} 2.
Nf3 {[%emt 00:00:04] [%clk 00:11:48]} Nf6 {[%emt 00:00:01] [%clk 00:15:27]} 3.
d3 {[%emt 00:00:19] [%clk 00:11:40]} d5 {[%emt 00:00:05] [%clk 00:15:32]} 4.
Nbd2 {[%emt 00:00:18] [%clk 00:11:31]} Bd6 {[%emt 00:00:04] [%clk 00:15:38]} 5.
g3 {[%emt 00:00:25] [%clk 00:11:16]} O-O {[%emt 00:00:06] [%clk 00:15:42]} 6.
Bg2 {[%emt 00:00:11] [%clk 00:11:15]} c6 {[%emt 00:00:24] [%clk 00:15:29]} 7.
O-O {[%emt 00:00:04] [%clk 00:11:21]} h6 {[%emt 00:01:04] [%clk 00:14:34]} 8.
Re1 {[%emt 00:00:06] [%clk 00:11:25]} dxe4 {[%emt 00:00:09] [%clk 00:14:36]} 9.
Nxe4 {[%emt 00:00:31] [%clk 00:11:04]} Nxe4 {[%emt 00:00:02] [%clk 00:14:43]}
10. dxe4 {[%emt 00:00:33] [%clk 00:10:41]} Be6 {[%emt 00:00:06] [%clk 00:14:48]}
11. Nh4 {[%emt 00:00:46] [%clk 00:10:04]} Bb4 {[%emt 00:01:30] [%clk 00:13:28]}
12. c3 {[%emt 00:00:03] [%clk 00:10:12]} Qxd1 {[%clk 00:13:37]} 13. Rxd1 {[%emt
00:00:02] [%clk 00:10:20]} Bc5 {[%emt 00:00:03] [%clk 00:13:43]} 14. Nf5 {[%emt
00:02:11] [%clk 00:08:19]} Nd7 {[%emt 00:00:14] [%clk 00:13:40]} 15. Be3 {[%emt
00:01:23] [%clk 00:07:05]} Bxe3 {[%emt 00:01:50] [%clk 00:12:01]} 16. Nxe3
{[%emt 00:00:02] [%clk 00:07:13]} Nc5 {[%emt 00:00:09] [%clk 00:12:02]} 17. f3
{[%emt 00:00:45] [%clk 00:06:38]} Rfd8 {[%emt 00:00:08] [%clk 00:12:04]} 18. b3
{[%emt 00:00:02] [%clk 00:06:46]} Kf8 {[%emt 00:00:30] [%clk 00:11:44]} 19. Kf2
{[%emt 00:00:59] [%clk 00:05:56]} Ke7 {[%emt 00:00:21] [%clk 00:11:33]} 20. Bf1
{[%emt 00:00:06] [%clk 00:06:00]} Rxd1 {[%emt 00:00:15] [%clk 00:11:29]} 21.
Nxd1 {[%emt 00:00:01] [%clk 00:06:09]} a5 {[%emt 00:00:26] [%clk 00:11:13]} 22.
Ke3 {[%emt 00:00:06] [%clk 00:06:13]} b5 {[%emt 00:00:54] [%clk 00:10:29]} 23.
Nf2 {[%emt 00:00:41] [%clk 00:05:42]} f6 {[%emt 00:00:08] [%clk 00:10:31]} 24.
Be2 {[%emt 00:00:28] [%clk 00:05:23]} Ra7 {[%emt 00:00:29] [%clk 00:10:12]} 25.
h4 {[%emt 00:00:05] [%clk 00:05:28]} Ra8 {[%emt 00:00:16] [%clk 00:10:07]} 26.
f4 {[%emt 00:00:48] [%clk 00:04:49]} Ra7 {[%emt 00:00:39] [%clk 00:09:39]} 27.
Rd1 {[%emt 00:00:48] [%clk 00:04:11]} Rd7 {[%emt 00:00:43] [%clk 00:09:06]} 28.
Rc1 {[%emt 00:00:04] [%clk 00:04:17]} Ra7 {[%emt 00:00:18] [%clk 00:08:58]} 29.
Rc2 {[%emt 00:00:25] [%clk 00:04:01]} Ra8 {[%emt 00:00:25] [%clk 00:08:43]} 30.
Bg4 {[%emt 00:00:54] [%clk 00:03:17]} Bf7 {[%emt 00:01:06] [%clk 00:07:48]} 31.
Rd2 {[%emt 00:00:09] [%clk 00:03:18]} Rd8 {[%emt 00:00:10] [%clk 00:07:48]} 32.
Rc2 {[%emt 00:00:10] [%clk 00:03:17]} Ra8 {[%emt 00:00:14] [%clk 00:07:44]} 33.
Bf5 {[%emt 00:00:03] [%clk 00:03:24]} Rd8 {[%emt 00:00:18] [%clk 00:07:36]} 34.
fxe5 {[%emt 00:00:14] [%clk 00:03:20]} fxe5 {[%emt 00:00:02] [%clk 00:07:44]}
35. b4 {[%emt 00:00:25] [%clk 00:03:06]} Nd7 {[%emt 00:01:59] [%clk 00:05:55]}
36. Bxd7 {[%emt 00:00:06] [%clk 00:03:09]} Rxd7 {[%emt 00:00:07] [%clk
00:05:59]} 37. Nd3 {[%emt 00:00:07] [%clk 00:03:12]} Kd6 {[%emt 00:00:17] [%clk
00:05:52]} 38. Rd2 {[%emt 00:01:21] [%clk 00:02:01]} Ra7 {[%emt 00:00:05] [%clk
00:05:57]} 39. Nc5+ {[%emt 00:00:47] [%clk 00:01:24]} Ke7 {[%emt 00:00:01] [%clk
00:06:06]} 40. bxa5 {[%emt 00:00:10] [%clk 00:01:24]} Rxa5 {[%emt 00:00:02]
[%clk 00:06:14]} 41. Rd7+ {[%emt 00:00:01] [%clk 00:01:32]} Ke8 {[%emt 00:00:33]
[%clk 00:05:51]} 42. Rc7 {[%emt 00:00:02] [%clk 00:01:41]} Rxa2 {[%emt 00:00:03]
[%clk 00:05:59]} 43. Nd3 {[%emt 00:00:01] [%clk 00:01:49]} Ra3 {[%emt 00:00:09]
[%clk 00:06:00]} 44. Nxe5 {[%emt 00:00:04] [%clk 00:01:55]} Ba2 {[%emt 00:01:01]
[%clk 00:05:09]} 45. Kd4 {[%emt 00:00:41] [%clk 00:01:24]} Ra4+ {[%emt 00:00:02]
[%clk 00:05:17]} 46. Kc5 {[%emt 00:00:01] [%clk 00:01:33]} g5 {[%emt 00:00:32]
[%clk 00:04:55]} 47. Kd6 {[%emt 00:00:11] [%clk 00:01:32]} Kf8 {[%emt 00:00:01]
[%clk 00:05:04]} 48. Nd7+ {[%emt 00:00:10] [%clk 00:01:32]} Kg8 {[%emt 00:00:06]
[%clk 00:05:07]} 49. e5 {[%emt 00:00:25] [%clk 00:01:17]} gxh4 {[%emt 00:00:22]
[%clk 00:04:56]} 50. Nf6+ {[%emt 00:00:02] [%clk 00:01:25]} Kf8 {[%emt 00:00:01]
[%clk 00:05:05]} 51. e6 {[%emt 00:00:02] [%clk 00:01:33]} 1-0

[Site "Europe Echecs"]

[Event "Championnat d'Europe Rapide"]
[Date "2024.12.08"]
[White "Zajic, Milan"]
[Black "Motylev, Alexander"]
[WhiteElo "2392"]
[BlackElo "2596"]
[Round "10.11"]
[Result "0-1"]
[TimeControl "900+10"]

1. e4 {[%emt 00:00:43]} c5 {[%emt 00:00:16] [%clk 00:14:23]} 2. Nf3 {[%emt
00:00:02] [%clk 00:15:26]} d6 {[%emt 00:00:02] [%clk 00:14:31]} 3. d4 {[%emt
00:00:01] [%clk 00:15:34]} cxd4 {[%emt 00:00:02] [%clk 00:14:40]} 4. Nxd4 {[%emt
00:00:02] [%clk 00:15:43]} Nf6 {[%emt 00:00:01] [%clk 00:14:48]} 5. Nc3 {[%emt
00:00:02] [%clk 00:15:51]} a6 {[%emt 00:00:01] [%clk 00:14:57]} 6. Bd3 {[%emt
00:00:03] [%clk 00:15:59]} g6 {[%emt 00:00:03] [%clk 00:15:03]} 7. f3 {[%emt
00:01:06] [%clk 00:15:03]} Qb6 {[%emt 00:00:03] [%clk 00:15:11]} 8. a3 {[%emt
00:00:01] [%clk 00:15:11]} Nbd7 {[%emt 00:00:07] [%clk 00:15:13]} 9. Nb3 {[%emt
00:03:59] [%clk 00:11:23]} Bg7 {[%emt 00:00:27] [%clk 00:14:56]} 10. Qe2 {[%emt
00:00:03] [%clk 00:11:30]} Qc7 {[%emt 00:00:24] [%clk 00:14:41]} 11. Be3 {[%emt
00:00:24] [%clk 00:11:17]} b5 {[%emt 00:00:26] [%clk 00:14:25]} 12. O-O {[%emt
00:00:37] [%clk 00:10:49]} O-O {[%emt 00:00:42] [%clk 00:13:54]} 13. Qf2 {[%emt
00:01:59] [%clk 00:09:00]} Bb7 {[%emt 00:00:22] [%clk 00:13:42]} 14. h3 {[%emt
00:00:46] [%clk 00:08:25]} d5 {[%emt 00:00:20] [%clk 00:13:32]} 15. exd5 {[%emt
00:00:19] [%clk 00:08:15]} Nxd5 {[%emt 00:00:01] [%clk 00:13:40]} 16. Nxd5
{[%emt 00:00:12] [%clk 00:08:14]} Bxd5 {[%emt 00:00:01] [%clk 00:13:49]} 17. Bd4
{[%emt 00:02:19] [%clk 00:06:06]} Ne5 {[%emt 00:00:40] [%clk 00:13:18]} 18. Nc5
{[%emt 00:00:37] [%clk 00:05:40]} Nxf3+ {[%emt 00:03:22] [%clk 00:10:06]} 19.
gxf3 {[%emt 00:00:02] [%clk 00:05:48]} Bxd4 {[%emt 00:00:05] [%clk 00:10:11]}
20. Qxd4 {[%emt 00:00:01] [%clk 00:05:56]} Qg3+ {[%emt 00:00:04] [%clk
00:10:17]} 21. Kh1 {[%emt 00:00:01] [%clk 00:06:05]} Qxh3+ {[%emt 00:00:08]
[%clk 00:10:20]} 22. Kg1 {[%emt 00:00:01] [%clk 00:06:13]} Qg3+ {[%emt 00:00:05]
[%clk 00:10:24]} 23. Kh1 {[%emt 00:00:02] [%clk 00:06:22]} Bxf3+ {[%emt
00:00:04] [%clk 00:10:30]} 24. Rxf3 {[%emt 00:00:01] [%clk 00:06:30]} Qxf3+
{[%emt 00:00:02] [%clk 00:10:39]} 25. Kg1 {[%emt 00:00:41] [%clk 00:05:59]} Qg3+
{[%emt 00:00:49] [%clk 00:10:00]} 26. Kf1 {[%emt 00:00:23] [%clk 00:05:46]} Qh3+
{[%emt 00:01:53] [%clk 00:08:17]} 27. Ke2 {[%emt 00:01:49] [%clk 00:04:07]} Rfd8
{[%emt 00:01:14] [%clk 00:07:13]} 28. Qf2 {[%emt 00:00:24] [%clk 00:03:53]} Rd5
{[%emt 00:02:33] [%clk 00:04:51]} 29. Ne4 {[%emt 00:00:43] [%clk 00:03:20]} Rad8
{[%emt 00:00:40] [%clk 00:04:20]} 30. Qg3 {[%emt 00:01:54] [%clk 00:01:37]} Qh5+
{[%emt 00:00:52] [%clk 00:03:37]} 31. Kd2 {[%emt 00:00:07] [%clk 00:01:39]} Qh6+
{[%emt 00:01:30] [%clk 00:02:18]} 32. Kc3 {[%emt 00:01:05] [%clk 00:00:44]} f5
{[%emt 00:00:23] [%clk 00:02:04]} 33. Nf2 {[%emt 00:00:21] [%clk 00:00:34]} Qg7+
{[%emt 00:00:06] [%clk 00:02:08]} 34. Kb3 {[%emt 00:00:08] [%clk 00:00:36]} Qf7
{[%emt 00:00:01] [%clk 00:02:17]} 35. Kc3 {[%emt 00:00:15] [%clk 00:00:31]} e5
{[%emt 00:00:08] [%clk 00:02:18]} 36. Rf1 {[%emt 00:00:25] [%clk 00:00:17]} e4
{[%emt 00:00:44] [%clk 00:01:45]} 37. Nxe4 {[%emt 00:00:12] [%clk 00:00:15]}
Qg7+ {[%emt 00:00:11] [%clk 00:01:43]} 38. Kb3 {[%emt 00:00:04] [%clk 00:00:21]}
fxe4 {[%emt 00:00:28] [%clk 00:01:25]} 39. Bxe4 {[%emt 00:00:02] [%clk
00:00:29]} Re5 {[%emt 00:00:21] [%clk 00:01:15]} 40. Bd3 {[%emt 00:00:23] [%clk
00:00:15]} Rf8 {[%emt 00:00:37] [%clk 00:00:49]} 41. Rxf8+ {[%emt 00:00:02]
[%clk 00:00:22]} Kxf8 {[%emt 00:00:02] [%clk 00:00:57]} 42. Qg2 {[%emt 00:00:20]
[%clk 00:00:13]} Qf7+ {[%emt 00:00:06] [%clk 00:01:01]} 43. Kb4 {[%emt 00:00:01]
[%clk 00:00:21]} Qe7+ {[%emt 00:00:07] [%clk 00:01:04]} 44. Kb3 {[%emt 00:00:06]
[%clk 00:00:25]} Qe6+ {[%emt 00:00:07] [%clk 00:01:07]} 45. Kb4 {[%emt 00:00:01]
[%clk 00:00:34]} Qd6+ {[%emt 00:00:14] [%clk 00:01:04]} 46. Kc3 {[%emt 00:00:31]
[%clk 00:00:12]} Kg7 {[%emt 00:00:10] [%clk 00:01:04]} 47. b4 {[%emt 00:00:07]
[%clk 00:00:15]} Re7 {[%emt 00:00:11] [%clk 00:01:04]} 48. Kb3 {[%emt 00:00:12]
[%clk 00:00:13]} Qe6+ {[%emt 00:00:09] [%clk 00:01:04]} 49. Kb2 {[%emt 00:00:03]
[%clk 00:00:20]} Qe5+ {[%emt 00:00:02] [%clk 00:01:12]} 50. Ka2 {[%emt 00:00:02]
[%clk 00:00:29]} Qc3 {[%emt 00:00:08] [%clk 00:01:13]} 51. Qd5 {[%emt 00:00:17]
[%clk 00:00:21]} Qf6 {[%emt 00:00:06] [%clk 00:01:18]} 52. Qg2 {[%emt 00:00:04]
[%clk 00:00:27]} Re1 {[%emt 00:00:13] [%clk 00:01:15]} 53. Qb7+ {[%emt 00:00:08]
[%clk 00:00:30]} Kh6 {[%emt 00:00:02] [%clk 00:01:22]} 0-1

[Site "Europe Echecs"]